lending/lending_fUSD_20251106
["ID","MTS","AMOUNT","RATE_DAILY","PERIOD"]
[393310198,1762447842172,-455.6692059,0.00017844,2]
[393310199,1762447842181,-8368.8904315,0.00017844,2]
[393310200,1762447842190,-177059.9979908,0.00017844,2]
[393310201,1762447842200,-2390.6020794,0.00017844,2]
[393310202,1762447842210,-12097.5303071,0.00017844,2]
[393310203,1762447842222,-2490.0,0.00017866,2]
[393310204,1762447842231,-500.68961362,0.00017873,2]
[393310205,1762447842241,-500.0,0.00017873,2]
[393310206,1762447842250,-500.74497787,0.00017873,2]
[393310207,1762447842259,-503.54833867,0.00017873,2]
[393310208,1762447842269,-514.51741513,0.00017873,2]
[393310209,1762447842279,-500.0,0.00017873,2]
[393310210,1762447842288,-500.0,0.00017873,2]
[393310211,1762447842297,-500.0,0.00017873,2]
[393310212,1762447842308,-500.0,0.00017873,2]
[393310213,1762447842317,-503.10120576,0.00017873,2]
[393310214,1762447842326,-500.0,0.00017873,2]
[393310215,1762447842336,-500.0,0.00017873,2]
[393310216,1762447842345,-500.19258661,0.00017873,2]
[393310217,1762447842355,-505.37835354,0.00017873,2]
[393310218,1762447842363,-500.0,0.00017873,2]
[393310219,1762447842373,-552.80340809,0.00017873,2]
[393310220,1762447842383,-500.65741845,0.00017873,2]
[393310221,1762447842393,-500.59586088,0.00017873,2]
[393310222,1762447842402,-500.0,0.00017873,2]
[393310223,1762447842411,-500.0,0.00017873,2]
[393310224,1762447842421,-500.27797312,0.00017873,2]
[393310225,1762447842431,-500.0,0.00017873,2]
[393310226,1762447842447,-500.0,0.00017873,2]
[393310227,1762447842461,-465.03295868,0.00017873,2]
[393310228,1762447842471,-164.32088567,0.00017873,2]
[393310229,1762447842480,-158.14817295,0.00017873,2]
[393310230,1762447842490,-500.49618419,0.00017873,2]
[393310231,1762447842499,-500.0,0.00017873,2]
[393310232,1762447842509,-2500.0,0.00017882,3]
[393310233,1762447842519,-166.67,0.0001789,2]
[393310234,1762447842528,-156.37713004,0.000179,2]
[393310235,1762447842538,-4637.80625962,0.000179,2]
[393310236,1762447842548,-1876.90931753,0.000179,2]
[393310237,1762447842559,-6042.25814946,0.000179,2]
[393310238,1762447842569,-3961.56784356,0.000179,2]
[393310239,1762447842579,-325.03961076,0.000179,2]
[393310240,1762447842589,-174.36793026,0.000179,2]
[393310241,1762447842598,-650.06320246,0.000179,2]
[393310242,1762447842608,-3332.68235117,0.000179,2]
[393310243,1762447842617,-150.81255791,0.000179,3]
[393310244,1762447842626,-420.0,0.00017944,2]
[393310245,1762447842636,-21391.82954433,0.00017946,2]
[393310246,1762447842646,-608.492,0.00017951,2]
[393310247,1762447842656,-3423.0,0.00017951,2]
[393310248,1762447842666,-1315.0,0.00017951,2]
[393310249,1762447842675,-574.0,0.00017951,2]
[393310250,1762447842685,-1596.0,0.00017951,2]
[393310251,1762447842694,-820.0,0.00017951,2]
[393310252,1762447842703,-812.0,0.00017951,2]
[393310253,1762447842713,-1273.0,0.00017951,2]
[393310254,1762447842722,-6475.0,0.00017951,2]
[393310255,1762447842731,-6673.309,0.00017951,2]
[393310256,1762447842739,-559.0,0.00017951,2]
[393310257,1762447842748,-2141.0,0.00017951,2]
[393310258,1762447842758,-254.61,0.00017972,2]
[393310259,1762447842768,-500.0,0.00017973,2]
[393310260,1762447842777,-500.0,0.00017973,2]
[393310261,1762447842787,-324.3529394,0.00017973,2]
[393310262,1762447842799,-500.0,0.00017973,2]
[393310263,1762447842809,-500.0,0.00017973,2]
[393310264,1762447842818,-500.22397222,0.00017973,2]
[393310265,1762447842827,-500.0,0.00017973,2]
[393310266,1762447842837,-500.0,0.00017973,2]
[393310267,1762447842847,-500.0,0.00017973,2]
[393310268,1762447842857,-500.0,0.00017973,2]
[393310269,1762447842867,-500.0,0.00017973,2]
[393310270,1762447842877,-500.0,0.00017973,2]
[393310271,1762447842887,-565.67,0.00017973,2]
[393310272,1762447842896,-440.97162396,0.0001799,2]
[393310273,1762447842906,-440.97162396,0.0001799,2]
[393310274,1762447842916,-440.97162396,0.0001799,2]
[393310275,1762447842925,-151.0,0.00017997,2]
[393310276,1762447842933,-580.98,0.00017998,2]
[393310277,1762447842943,-212.916,0.00017999,2]
[393310278,1762447842952,-500.0,0.00017999,2]
[393310279,1762447842962,-500.0,0.00017999,2]
[393310280,1762447842972,-500.0,0.00017999,2]
[393310281,1762447842981,-500.0,0.00017999,2]
[393310282,1762447842991,-500.0,0.00017999,2]
[393310283,1762447843001,-500.0,0.00017999,2]
[393310284,1762447843013,-500.0,0.00017999,2]
[393310285,1762447843026,-500.0,0.00017999,2]
[393310286,1762447843035,-500.0,0.00017999,2]
[393310287,1762447843044,-500.0,0.00017999,2]
[393310288,1762447843053,-500.0,0.00017999,2]
[393310289,1762447843063,-500.0,0.00017999,2]
[393310290,1762447843073,-500.0,0.00017999,2]
[393310291,1762447843083,-500.0,0.00017999,2]
[393310292,1762447843092,-500.0,0.00017999,2]
[393310293,1762447843101,-500.0,0.00017999,2]
[393310294,1762447843111,-500.0,0.00017999,2]
[393310295,1762447843122,-500.0,0.00017999,2]
[393310296,1762447843133,-500.0,0.00017999,2]
[393310297,1762447843143,-500.0,0.00017999,2]
[393310298,1762447843153,-500.0,0.00017999,2]
[393310299,1762447843163,-479.42248761,0.00017999,2]
[393310300,1762447843173,-576.85542387,0.00017999,2]
[393310301,1762447843183,-399.17554175,0.00017999,2]
[393310302,1762447843194,-500.0,0.00017999,2]
[393310304,1762447843213,-284.44403805,0.00017999,2]
[393310306,1762447843223,-500.0,0.00017999,2]
[393310308,1762447843232,-228.44372178,0.00017999,2]
[393310310,1762447843241,-3883.0,0.00018,2]
[393310312,1762447843251,-1162682.68407738,0.00018,2]
[393310314,1762447843260,-23081.23455293,0.00018,2]
[393310316,1762447843274,-1008.5257794,0.00018,2]
[393310317,1762447843286,-846.00432761,0.00018,2]
[393310318,1762447843300,-1601.4831781,0.00018,2]
[393310319,1762447843312,-257.23921058,0.00018,2]
[393310320,1762447843327,-981.27000004,0.00018,2]
[393310321,1762447843338,-1254.73255102,0.00018,2]
[393310322,1762447843569,-1000.0,0.00016922,2]
[393310323,1762447843578,-9216.16487184,0.00018,2]
[393310324,1762447843590,-304.304,0.00018,2]
[393310325,1762447843731,-15136.49325366,0.00018,2]
[393310331,1762447843886,-14724.88317642,0.00018,2]
[393310333,1762447843897,-10463.67804648,0.00018,2]
[393310433,1762447846772,-151.0,0.00015657,2]
[393310435,1762447846782,-324.75382172,0.00017973,2]
[393310436,1762447846797,-1552.59602243,0.00018,2]
[393310437,1762447847040,-629.09988373,0.00018,2]
[393310438,1762447847055,-277.13750352,0.00018,2]
[393310439,1762447847068,-11834.96193162,0.00018,2]
[393310440,1762447847080,-8087.01000001,0.00018,2]
[393310454,1762448052659,300.0,0.0003,120]
[393310455,1762448104938,268.0,0.0003,120]
[393310481,1762448451577,918.21,0.00013699,2]
[393310482,1762448698530,200.0,0.00030137,120]
[393310489,1762449031524,-250.0,0.0001606,2]
[393310490,1762449031534,-421.98747208,0.00016156,2]
[393310491,1762449031627,-374.25252792,0.00016156,2]
[393310492,1762449031637,-4684.87,0.00016454,2]
[393310493,1762449031646,-1200.0,0.00016496,2]
[393310494,1762449031655,-300.0,0.00016496,2]
[393310495,1762449031665,-1200.0,0.00016496,2]
[393310496,1762449031679,-300.0,0.00016496,2]
[393310497,1762449031688,-270.0,0.00016497,2]
[393310498,1762449031698,-73972.80275701,0.000165,2]
[393310499,1762449031708,-16045.46,0.00016591,2]
[393310500,1762449031718,-500.0,0.00016767,2]
[393310501,1762449031727,-157.79916548,0.00016822,2]
[393310502,1762449031736,-4174.02563373,0.00016822,2]
[393310503,1762449031747,-5000.0,0.00016822,2]
[393310504,1762449031757,-200.0,0.000169,6]
[393310505,1762449031767,-500.0,0.00016921,2]
[393310506,1762449031776,-500.0,0.00016921,2]
[393310507,1762449031785,-500.0,0.00016921,2]
[393310508,1762449031794,-377.94170616,0.00016921,2]
[393310509,1762449031804,-500.0,0.00016921,2]
[393310510,1762449031813,-500.0,0.00016921,2]
[393310511,1762449031823,-241.38922234,0.00016921,2]
[393310512,1762449031832,-63509.19717617,0.00016922,2]
[393310513,1762449031844,-1600.0,0.00016922,2]
[393310514,1762449031855,-811.89089801,0.00016922,2]
[393310515,1762449031867,-2061.40965279,0.00016922,2]
[393310516,1762449031878,-1585.10498767,0.00016922,2]
[393310517,1762449031890,-8922.38117758,0.00016922,2]
[393310520,1762449031914,-403.49580254,0.00016499,2]
[393310521,1762449031923,-500.0,0.00016499,2]
[393310522,1762449031934,-179.18740738,0.00016922,2]
[393310525,1762449037448,-500.0,0.00016499,2]
[393310526,1762449037458,-500.0,0.00016499,2]
[393310527,1762449037468,-282.527036,0.00016499,2]
[393310528,1762449037502,-217.472964,0.00016499,2]
[393310529,1762449037512,-500.0,0.00016499,2]
[393310530,1762449037521,-500.0,0.00016499,2]
[393310531,1762449037531,-520.60255007,0.00016499,2]
[393310532,1762449037540,-488.92448593,0.00016499,2]
[393310533,1762449037557,-11.07551407,0.00016499,2]
[393310534,1762449037566,-500.0,0.00016499,2]
[393310535,1762449037575,-50.80375554,0.00016499,2]
[393310536,1762449037612,-324.82166701,0.00016499,2]
[393310538,1762449037624,-124.37457745,0.00016499,2]
[393310540,1762449037633,-500.0,0.00016499,2]
[393310542,1762449037643,-157.86470751,0.00016822,2]
[393310544,1762449037652,-456.78742421,0.00016922,2]
[393310547,1762449037663,-250749.05853191,0.00016922,2]
[393310553,1762449039605,-79881.01752772,0.00016922,2]
[393310554,1762449039722,-10243.96521656,0.00016922,2]
[393310555,1762449039738,-1000.0,0.00016922,2]
[393310556,1762449039748,-455.8,0.00016922,2]
[393310557,1762449039758,-4174.02563365,0.00016942,2]
[393310558,1762449039768,-254.61,0.00016949,2]
[393310559,1762449039778,-500.0,0.00016973,2]
[393310560,1762449039787,-198.02912071,0.00016973,2]
[393310561,1762449039797,-525.42297104,0.00016973,2]
[393310562,1762449039807,-500.0,0.00016973,2]
[393310563,1762449039816,-500.0,0.00016973,2]
[393310564,1762449039825,-500.0,0.00016973,2]
[393310565,1762449039835,-566.03408857,0.00016973,2]
[393310566,1762449039844,-500.32689102,0.00016973,2]
[393310567,1762449039853,-500.0,0.00016973,2]
[393310568,1762449039862,-500.0,0.00016973,2]
[393310569,1762449039872,-620.64256179,0.00016973,2]
[393310570,1762449039882,-569.98024402,0.00016973,2]
[393310571,1762449039891,-500.0,0.00016973,2]
[393310572,1762449039901,-501.63643931,0.00016973,2]
[393310573,1762449039910,-527.53172848,0.00016973,2]
[393310574,1762449039920,-500.0,0.00016973,2]
[393310575,1762449039930,-500.0,0.00016973,2]
[393310576,1762449039942,-274.31462951,0.00016973,2]
[393310577,1762449039951,-500.0,0.00016973,2]
[393310578,1762449039961,-500.0,0.00016973,2]
[393310579,1762449039970,-500.0,0.00016973,2]
[393310580,1762449039980,-500.0,0.00016973,2]
[393310581,1762449039989,-500.0,0.00016973,2]
[393310582,1762449039999,-503.46009537,0.00016973,2]
[393310583,1762449040008,-500.0,0.00016973,2]
[393310584,1762449040018,-500.0,0.00016973,2]
[393310585,1762449040028,-707.09,0.00016973,2]
[393310586,1762449040038,-4587.86,0.00016992,2]
[393310587,1762449040048,-250.0,0.00017,2]
[393310588,1762449040057,-250.0,0.00017,2]
[393310589,1762449040068,-250.0,0.00017,2]
[393310590,1762449040078,-250.0,0.00017,2]
[393310591,1762449040087,-250.0,0.00017,2]
[393310592,1762449040096,-250.0,0.00017,2]
[393310593,1762449040106,-250.0,0.00017,2]
[393310594,1762449040116,-250.0,0.00017,2]
[393310596,1762449040126,-250.0,0.00017,2]
[393310598,1762449040135,-250.0,0.00017,2]
[393310600,1762449040144,-250.0,0.00017,2]
[393310602,1762449040156,-250.0,0.00017,2]
[393310604,1762449040166,-250.0,0.00017,2]
[393310606,1762449040175,-250.0,0.00017,2]
[393310608,1762449040187,-250.0,0.00017,2]
[393310610,1762449040197,-250.0,0.00017,2]
[393310611,1762449040208,-250.0,0.00017,2]
[393310612,1762449040217,-250.0,0.00017,2]
[393310613,1762449040228,-250.0,0.00017,2]
[393310614,1762449040238,-250.0,0.00017,2]
[393310615,1762449040248,-250.0,0.00017,2]
[393310616,1762449040257,-250.0,0.00017,2]
[393310617,1762449040267,-250.0,0.00017,2]
[393310618,1762449040276,-250.0,0.00017,2]
[393310619,1762449040285,-250.0,0.00017,2]
[393310620,1762449040294,-250.0,0.00017,2]
[393310621,1762449040304,-250.0,0.00017,2]
[393310622,1762449040314,-250.0,0.00017,2]
[393310623,1762449040323,-269.0,0.00017,2]
[393310624,1762449040334,-500.0,0.00017,6]
[393310625,1762449040345,-157.86470745,0.00017002,2]
[393310626,1762449040355,-500.0,0.00017021,2]
[393310627,1762449040365,-502.51,0.00017021,2]
[393310628,1762449040374,-593.28012558,0.00017021,2]
[393310629,1762449040383,-500.0,0.00017021,2]
[393310630,1762449040393,-183.69568692,0.00017021,2]
[393310631,1762449040403,-500.0,0.00017021,2]
[393310632,1762449040412,-324.02785148,0.00017021,2]
[393310633,1762449040421,-4174.02563365,0.00017062,2]
[393310634,1762449040430,-500.0,0.00017072,2]
[393310635,1762449040446,-500.0,0.00017096,2]
[393310636,1762449040455,-800.0,0.000171,6]
[393310637,1762449040464,-502.51,0.0001712,2]
[393310638,1762449040473,-257.01,0.0001716,2]
[393310639,1762449040483,-160.86,0.0001718,2]
[393310640,1762449040493,-4174.02563365,0.00017181,2]
[393310641,1762449040503,-1100.0,0.000172,6]
[393310642,1762449040513,-707.09,0.00017247,2]
[393310643,1762449040522,-1400.0,0.000173,6]
[393310644,1762449040532,-4174.02563365,0.00017301,2]
[393310645,1762449040541,-157.79916548,0.00017361,2]
[393310646,1762449040551,-200.0,0.000174,6]
[393310647,1762449040560,-4174.02563365,0.00017421,2]
[393310648,1762449040569,-477.87911524,0.00017481,2]
[393310649,1762449040578,-200.0,0.000175,6]
[393310650,1762449040587,-1004.75986535,0.00017521,2]
[393310651,1762449040597,-1000.0,0.00017521,2]
[393310652,1762449040606,-1000.0,0.00017521,2]
[393310653,1762449040615,-1000.0,0.00017521,2]
[393310654,1762449040624,-1000.0,0.00017521,2]
[393310655,1762449040633,-1000.0,0.00017521,2]
[393310656,1762449040643,-1000.0,0.00017521,2]
[393310657,1762449040652,-1000.0,0.00017521,2]
[393310658,1762449040662,-1000.0,0.00017521,2]
[393310659,1762449040671,-1000.0,0.00017521,2]
[393310660,1762449040680,-1000.0,0.00017521,2]
[393310661,1762449040690,-1000.0,0.00017521,2]
[393310662,1762449040699,-1000.0,0.00017521,2]
[393310663,1762449040709,-1000.0,0.00017521,2]
[393310664,1762449040718,-707.09,0.00017521,2]
[393310665,1762449040727,-820.0,0.00017521,2]
[393310666,1762449040737,-1596.0,0.00017521,2]
[393310667,1762449040747,-1273.0,0.00017521,2]
[393310668,1762449040756,-812.0,0.00017521,2]
[393310669,1762449040765,-905.0,0.00017521,2]
[393310670,1762449040775,-1188.0,0.00017521,2]
[393310671,1762449040785,-6475.0,0.00017521,2]
[393310672,1762449040794,-2141.0,0.00017521,2]
[393310673,1762449040803,-6673.309,0.00017521,2]
[393310674,1762449040813,-559.0,0.00017521,2]
[393310675,1762449040823,-4174.02563365,0.00017541,2]
[393310676,1762449040832,-329.46,0.00017542,2]
[393310677,1762449040841,-331.18,0.00017542,2]
[393310678,1762449040851,-200.0,0.000176,6]
[393310679,1762449040860,-1088.82,0.00017634,2]
[393310680,1762449040870,-698.56,0.00017634,2]
[393310681,1762449040880,-1396.88,0.00017634,2]
[393310682,1762449040889,-698.56,0.00017634,2]
[393310683,1762449040899,-698.56,0.00017634,2]
[393310684,1762449040909,-698.56,0.00017634,2]
[393310685,1762449040920,-698.56,0.00017634,2]
[393310686,1762449040929,-698.56,0.00017634,2]
[393310687,1762449040946,-698.56,0.00017634,2]
[393310688,1762449040957,-698.56,0.00017634,2]
[393310689,1762449040967,-698.56,0.00017634,2]
[393310690,1762449040979,-698.56,0.00017634,2]
[393310691,1762449040989,-4174.02563365,0.0001766,2]
[393310692,1762449040999,-331.18,0.00017679,2]
[393310693,1762449041008,-462.90844525,0.00017699,2]
[393310694,1762449041017,-1063.1084148,0.00017699,2]
[393310695,1762449041027,-200.0,0.000177,6]
[393310696,1762449041036,-6786.09,0.00017728,2]
[393310697,1762449041045,-2179.75,0.00017728,2]
[393310698,1762449041054,-1083.77,0.00017728,2]
[393310699,1762449041064,-162.5612366,0.00017732,2]
[393310700,1762449041073,-2085.0,0.00017753,2]
[393310701,1762449041083,-954.24,0.00017757,2]
[393310702,1762449041092,-261.40211524,0.00017771,2]
[393310703,1762449041102,-4174.02563365,0.0001778,2]
[393310704,1762449041111,-707.09,0.00017795,2]
[393310705,1762449041120,-500.0,0.000178,2]
[393310706,1762449041129,-808.0,0.000178,6]
[393310707,1762449041139,-500.0,0.00017829,2]
[393310708,1762449041150,-90441.67278817,0.0001783,2]
[393310709,1762449041163,-502.51,0.00017843,2]
[393310710,1762449041172,-2500.0,0.00017874,3]
[393310711,1762449041181,-4379.31295648,0.000179,2]
[393310712,1762449041195,-1876.90931753,0.000179,2]
[393310713,1762449041204,-157.79916548,0.000179,2]
[393310714,1762449041213,-4174.02563365,0.000179,2]
[393310715,1762449041222,-325.03961076,0.000179,2]
[393310716,1762449041234,-650.06320246,0.000179,2]
[393310717,1762449041243,-150.81255791,0.000179,3]
[393310718,1762449041252,-3332.68235117,0.000179,2]
[393310719,1762449041262,-5888.0,0.00017932,2]
[393310720,1762449041271,-21391.82954433,0.00017946,2]
[393310721,1762449041280,-150.0,0.00017951,2]
[393310722,1762449041289,-150.0,0.00017951,2]
[393310723,1762449041298,-150.0,0.00017951,2]
[393310724,1762449041307,-150.0,0.00017951,2]
[393310725,1762449041316,-150.0,0.00017951,2]
[393310726,1762449041326,-150.0,0.00017951,2]
[393310727,1762449041336,-3423.0,0.00017951,2]
[393310728,1762449041345,-1315.0,0.00017951,2]
[393310729,1762449041354,-574.0,0.00017951,2]
[393310730,1762449041363,-608.492,0.00017951,2]
[393310731,1762449041372,-2085.0,0.00017955,2]
[393310732,1762449041382,-500.0,0.00017973,2]
[393310733,1762449041391,-500.0,0.00017973,2]
[393310734,1762449041400,-500.68961362,0.00017973,2]
[393310735,1762449041410,-177.37183527,0.00017973,2]
[393310736,1762449041419,-503.54833867,0.00017973,2]
[393310737,1762449041429,-500.74497787,0.00017973,2]
[393310738,1762449041440,-500.22397222,0.00017973,2]
[393310739,1762449041450,-500.0,0.00017973,2]
[393310740,1762449041459,-514.51741513,0.00017973,2]
[393310741,1762449041469,-500.19258661,0.00017973,2]
[393310742,1762449041479,-500.0,0.00017973,2]
[393310743,1762449041676,-500.0,0.00017973,2]
[393310744,1762449041688,-500.0,0.00017973,2]
[393310745,1762449041698,-500.0,0.00017973,2]
[393310746,1762449041707,-503.10120576,0.00017973,2]
[393310747,1762449041717,-500.0,0.00017973,2]
[393310748,1762449041727,-500.0,0.00017973,2]
[393310749,1762449041736,-500.0,0.00017973,2]
[393310750,1762449041746,-500.0,0.00017973,2]
[393310751,1762449041755,-552.80340809,0.00017973,2]
[393310752,1762449041765,-500.0,0.00017973,2]
[393310753,1762449041775,-519.18307987,0.00017973,2]
[393310754,1762449041785,-500.0,0.00017973,2]
[393310755,1762449041794,-500.0,0.00017973,2]
[393310756,1762449041804,-500.0,0.00017973,2]
[393310757,1762449041813,-500.0,0.00017973,2]
[393310758,1762449041823,-500.65741845,0.00017973,2]
[393310759,1762449041832,-500.27797312,0.00017973,2]
[393310760,1762449041841,-500.0,0.00017973,2]
[393310761,1762449041851,-324.3529394,0.00017973,2]
[393310762,1762449041860,-500.0,0.00017973,2]
[393310763,1762449041869,-158.14817295,0.00017973,2]
[393310764,1762449041878,-164.32088567,0.00017973,2]
[393310765,1762449041888,-500.0,0.00017973,2]
[393310766,1762449041897,-500.0,0.00017973,2]
[393310767,1762449041906,-465.03295868,0.00017973,2]
[393310768,1762449041915,-500.0,0.00017973,2]
[393310769,1762449041925,-500.0,0.00017973,2]
[393310770,1762449041936,-500.59586088,0.00017973,2]
[393310771,1762449041947,-500.49618419,0.00017973,2]
[393310772,1762449041955,-440.97162396,0.00017989,2]
[393310773,1762449041964,-440.97162396,0.0001799,2]
[393310774,1762449041973,-440.97162396,0.0001799,2]
[393310775,1762449041982,-151.0,0.00017997,2]
[393310776,1762449041991,-151.0,0.00017997,2]
[393310777,1762449042000,-500.0,0.00017998,2]
[393310778,1762449042010,-500.0,0.00017998,2]
[393310779,1762449042019,-3685.0,0.00017999,2]
[393310780,1762449042028,-10606.4487217,0.00017999,2]
[393310781,1762449042038,-502.51,0.00017999,2]
[393310782,1762449042047,-502.51,0.00017999,2]
[393310783,1762449042056,-502.51,0.00017999,2]
[393310784,1762449042065,-502.51,0.00017999,2]
[393310785,1762449042075,-502.51,0.00017999,2]
[393310786,1762449042084,-502.51,0.00017999,2]
[393310787,1762449042093,-502.51,0.00017999,2]
[393310788,1762449042102,-502.51,0.00017999,2]
[393310789,1762449042111,-502.51,0.00017999,2]
[393310790,1762449042121,-502.51,0.00017999,2]
[393310791,1762449042130,-502.51,0.00017999,2]
[393310792,1762449042139,-502.51,0.00017999,2]
[393310793,1762449042148,-502.51,0.00017999,2]
[393310794,1762449042159,-502.51,0.00017999,2]
[393310795,1762449042169,-502.51,0.00017999,2]
[393310796,1762449042178,-502.51,0.00017999,2]
[393310797,1762449042190,-502.51,0.00017999,2]
[393310798,1762449042201,-502.51,0.00017999,2]
[393310799,1762449042211,-502.51,0.00017999,2]
[393310800,1762449042221,-502.51,0.00017999,2]
[393310801,1762449042230,-502.67248761,0.00017999,2]
[393310802,1762449042241,-212.916,0.00017999,2]
[393310803,1762449042252,-2389.0302525,0.00017999,2]
[393310804,1762449042261,-55603.2278714,0.00017999,2]
[393310805,1762449042270,-56459.5977823,0.00017999,2]
[393310806,1762449042280,-500.0,0.00017999,2]
[393310808,1762449042289,-500.0,0.00017999,2]
[393310810,1762449042299,-500.0,0.00017999,2]
[393310812,1762449042308,-500.0,0.00017999,2]
[393310814,1762449042317,-17956.4093453,0.00017999,2]
[393310816,1762449042326,-399.17554175,0.00017999,2]
[393310818,1762449042336,-284.48434783,0.00017999,2]
[393310821,1762449042345,-2284.0143823,0.00017999,2]
[393310824,1762449042354,-209250.3991045,0.00017999,2]
[393310827,1762449042363,-500.0,0.00017999,2]
[393310829,1762449042371,-500.0,0.00017999,2]
[393310831,1762449042380,-189.76372178,0.00017999,2]
[393310833,1762449042389,-976778.85394764,0.00018,2]
[393310847,1762449042545,-2040.0,0.00018,2]
[393310848,1762449042556,-31865.06767792,0.00018,2]
[393310851,1762449042680,-3961.56784356,0.000179,2]
[393310852,1762449042691,-97615.07546548,0.00018,2]
[393310853,1762449042705,-36269.7136814,0.00018,2]
[393310854,1762449042716,-7153648.57076857,0.00018,2]
[393310863,1762449045965,-157.86470745,0.00017181,2]
[393310864,1762449045976,-165.63650267,0.00017634,2]
[393310865,1762449046228,-532.92349733,0.00017634,2]
[393310866,1762449046239,-40.62150955,0.00018,2]
[393310867,1762449046282,-304.2716808,0.00018,2]
[393310869,1762449193468,320.82,8.746e-05,2]
[393310870,1762449193680,320.82,9.188e-05,2]
[393310871,1762449193944,320.82,9.63e-05,2]
[393310872,1762449194328,320.82,0.00010073,2]
[393310873,1762449194552,320.82,0.00010515,2]
[393310874,1762449194770,320.82,0.00010957,2]
[393310875,1762449194984,320.82,0.00011399,2]
[393310876,1762449195201,320.82,0.00011842,2]
[393310877,1762449195440,320.82,0.00012284,2]
[393310878,1762449195645,320.82,0.00012726,2]
[393310879,1762449195854,320.82,0.00013168,2]
[393310880,1762449196066,320.82,0.00013611,2]
[393310881,1762449196274,320.82,0.00014053,2]
[393310882,1762449196476,320.82,0.00014495,2]
[393310883,1762449196689,320.82,0.00014937,2]
[393310885,1762449517500,500.0,0.00038852,120]
[393310886,1762449517903,500.0,0.00038852,120]
[393310887,1762449518339,500.0,0.00038852,120]
[393310888,1762449518916,500.0,0.00038852,120]
[393310889,1762449519306,500.0,0.00038852,120]
[393310890,1762449519672,500.0,0.00038852,120]
[393310891,1762449520096,500.0,0.00038852,120]
[393310892,1762449520491,500.0,0.00038852,120]
[393310893,1762449521032,500.0,0.00038852,120]
[393310894,1762449521426,500.0,0.00038852,120]
[393310895,1762449521800,500.0,0.00038852,120]
[393310896,1762449522183,500.0,0.00038852,120]
[393310897,1762449522564,500.0,0.00038852,120]
[393310898,1762449522972,500.0,0.00038852,120]
[393310899,1762449523404,500.0,0.00038852,120]
[393310900,1762449523792,500.0,0.00038852,120]
[393310901,1762449524164,500.0,0.00038852,120]
[393310902,1762449524541,500.0,0.00038852,120]
[393310903,1762449524923,500.0,0.00038852,120]
[393310904,1762449525296,500.0,0.00038852,120]
[393310905,1762449630463,899.82,0.00038852,120]
[393310906,1762449630822,899.82,0.00038852,120]
[393310907,1762449631198,899.82,0.00038852,120]
[393310908,1762449631616,899.82,0.00038852,120]
[393310909,1762449632045,899.82,0.00038852,120]
[393310910,1762449632575,899.82,0.00038852,120]
[393310911,1762449632855,899.82,0.00038852,120]
[393310912,1762449633961,899.82,0.00038852,120]
[393310913,1762449634384,899.82,0.00038852,120]
[393310914,1762449634769,899.82,0.00038852,120]
[393310915,1762449635316,899.82,0.00038852,120]
[393310916,1762449635704,899.82,0.00038852,120]
[393310917,1762449636271,899.82,0.00038852,120]